[Event "Icelandic Team-ch Kvika Leagu 2023-24"]
[Site "Reykjavik"]
[Date "2024.03.02"]
[Round "8"]
[White "Omarsson, Dadi"]
[Black "Bjornsson, Gunnar"]
[Result "1/2-1/2"]
[ECO "B35"]
[WhiteElo "2199"]
[BlackElo "2131"]
[Annotator "RC"]
[PlyCount "45"]
[EventDate "2024.02.29"]
[EventType "team-tourn"]
[EventCountry "ISL"]
[SourceTitle "playchess.com"]
[Source "ChessBase"]
[SourceQuality "1"]
[TimeControl "40/5400+30:900+30"]

1. e4 {[%emt 0:00:48]} c5 {[%emt 0:03:28]} 2. Nf3 {[%emt 0:00:36]} Nc6 {[%emt 0:00:28]} 3. d4 {[%emt 0:00:17]} cxd4 {[%emt 0:00:03]} 4. Nxd4 {[%emt 0:00:06]} g6 {[%emt 0:00:03]} 5. Nc3 {[%emt 0:02:51]} Bg7 {[%emt 0:00:54]} 6. Be3 {[%emt 0:00:08]} Nf6 {[%emt 0:00:08]} 7. Bc4 {[%emt 0:00:11]} O-O {[%emt 0:00:12]} 8. Bb3 {[%emt 0:00:18]} Ng4 {[%emt 0:05:38]} 9. Qxg4 {[%emt 0:02:31]} Nxd4 {[%emt 0:00:54]} 10. Qd1 {[%emt 0:00:11]} Nxb3 {[%emt 0:00:20]} 11. axb3 {[%emt 0:00:11]} Bxc3+ {[%emt 0:03:11]} 12. bxc3 {[%emt 0:00:19]} Qc7 {[%emt 0:01:50]} 13. Qd2 {[%emt 0:05:47]} d6 {[%emt 0:03:40]} 14. h4 {[%emt 0:10:08]} h5 {[%emt 0:03:56]} 15. O-O {[%emt 0:07:42]} Bd7 {[%emt 0:07:12]} 16. f4 {[%emt 0:08:18]} f5 {[%emt 0:22:19]} 17. e5 {[%emt 0:05:52]} Bc6 {[%emt 0:04:03]} 18. Qf2 {[%emt 0:10:18]} Be4 {[%emt 0:03:41]} 19. Bd4 {[%emt 0:07:45]} Qc6 {[%emt 0:05:05]} 20. exd6 {[%emt 0:05:53]} exd6 {[%emt 0:01:14]} 21. c4 {[%emt 0:03:06]} a6 {[%emt 0:03:54]} 22. Qg3 {[%emt 0:06:56]} Kh7 {[%emt 0:01:04]} 23. c3 {[%emt 0:03:16]} 1/2-1/2

[Event "Icelandic Team-ch Kvika Leagu 2023-24"]
[Site "Reykjavik"]
[Date "2024.03.02"]
[Round "8"]
[White "Kristinsson, Baldur"]
[Black "Mai, Alexander Oliver"]
[Result "1/2-1/2"]
[ECO "D30"]
[WhiteElo "2169"]
[BlackElo "2160"]
[Annotator "RC"]
[PlyCount "53"]
[EventDate "2024.02.29"]
[EventType "team-tourn"]
[EventCountry "ISL"]
[SourceTitle "playchess.com"]
[Source "ChessBase"]
[SourceQuality "1"]
[TimeControl "40/5400+30:900+30"]

1. Nf3 {[%emt 0:00:09]} d5 {[%emt 0:01:08]} 2. d4 {[%emt 0:00:10]} Nf6 {[%emt 0:00:08]} 3. c4 {[%emt 0:00:07]} e6 {[%emt 0:00:07]} 4. e3 {[%emt 0:01:17]} a6 {[%emt 0:03:33]} 5. Qc2 {[%emt 0:00:35]} dxc4 {[%emt 0:04:08]} 6. Bxc4 {[%emt 0:00:20]} Nbd7 {[%emt 0:02:29]} 7. a4 {[%emt 0:02:31]} b6 {[%emt 0:02:19]} 8. O-O {[%emt 0:01:55]} Bb7 {[%emt 0:00:40]} 9. Nbd2 {[%emt 0:00:14]} c5 {[%emt 0:00:42]} 10. Re1 {[%emt 0:07:26]} Be7 {[%emt 0:01:37]} 11. b3 {[%emt 0:09:55]} O-O {[%emt 0:00:47]} 12. Bb2 {[%emt 0:01:45]} Ra7 {[%emt 0:04:37]} 13. Rad1 {[%emt 0:06:22]} Qa8 {[%emt 0:02:00]} 14. e4 {[%emt 0:00:51]} Re8 {[%emt 0:04:17]} 15. Ne5 {[%emt 0:09:51]} Nxe5 {[%emt 0:05:02]} 16. dxe5 {[%emt 0:00:06]} Nd7 {[%emt 0:00:14]} 17. f4 {[%emt 0:04:17]} Bf8 {[%emt 0:04:30]} 18. Qd3 {[%emt 0:08:44]} Nb8 {[%emt 0:01:38]} 19. Qh3 {[%emt 0:00:10]} Bc6 {[%emt 0:04:57]} 20. f5 {[%emt 0:05:55]} b5 {[%emt 0:00:35]} 21. Bd3 {[%emt 0:05:44]} Qb7 {[%emt 0:01:47]} 22. axb5 {[%emt 0:06:11]} axb5 {[%emt 0:00:09]} 23. Bb1 {[%emt 0:00:42]} Qb6 {[%emt 0:03:59]} 24. Kh1 {[%emt 0:01:11]} Rd7 {[%emt 0:01:24]} 25. Nf3 {[%emt 0:00:52]} Qd8 {[%emt 0:01:46]} 26. Rc1 {[%emt 0:03:17]} Na6 {[%emt 0:01:36]} 27. Bc3 {[%emt 0:05:26]} 1/2-1/2

[Event "Icelandic Team-ch Kvika Leagu 2023-24"]
[Site "Reykjavik"]
[Date "2024.03.02"]
[Round "8"]
[White "Olafsson, Thorvardur"]
[Black "Van den Berg, Bram"]
[Result "1/2-1/2"]
[ECO "B01"]
[WhiteElo "2105"]
[BlackElo "2173"]
[Annotator "RC"]
[PlyCount "53"]
[EventDate "2024.02.29"]
[EventType "team-tourn"]
[EventCountry "ISL"]
[SourceTitle "playchess.com"]
[Source "ChessBase"]
[SourceQuality "1"]
[TimeControl "40/5400+30:900+30"]

1. e4 {[%emt 0:01:25]} d5 {[%emt 0:00:41]} 2. exd5 {[%emt 0:00:39]} Nf6 {[%emt 0:00:04]} 3. Bb5+ {[%emt 0:01:26]} Nbd7 {[%emt 0:00:26]} 4. d4 {[%emt 0:03:33]} Nxd5 {[%emt 0:00:34]} 5. Nf3 {[%emt 0:00:32]} g6 {[%emt 0:01:35]} 6. O-O {[%emt 0:00:59]} Bg7 {[%emt 0:00:03]} 7. Re1 {[%emt 0:03:43]} O-O {[%emt 0:02:05]} 8. Bf1 {[%emt 0:03:44]} b6 {[%emt 0:05:24]} 9. c4 {[%emt 0:06:41]} N5f6 {[%emt 0:00:22]} 10. Nc3 {[%emt 0:01:51]} Bb7 {[%emt 0:00:19]} 11. h3 {[%emt 0:01:34]} Re8 {[%emt 0:03:12]} 12. Bf4 {[%emt 0:10:59]} Nf8 {[%emt 0:03:31]} 13. Be5 {[%emt 0:09:35]} a6 {[%emt 0:03:35]} 14. Qd3 {[%emt 0:03:54]} N8d7 {[%emt 0:08:23]} 15. Bh2 {[%emt 0:05:22]} e6 {[%emt 0:01:20]} 16. Rad1 {[%emt 0:02:03]} Rc8 {[%emt 0:04:12]} 17. Ne5 {[%emt 0:07:42]} Qe7 {[%emt 0:03:41]} 18. a3 {[%emt 0:03:21]} Red8 {[%emt 0:02:51]} 19. Qe3 {[%emt 0:02:00]} c5 {[%emt 0:10:40]} 20. d5 {[%emt 0:15:06]} exd5 {[%emt 0:05:10]} 21. cxd5 {[%emt 0:01:43]} Nxe5 {[%emt 0:01:42]} 22. Bxe5 {[%emt 0:02:52]} Nxd5 {[%emt 0:04:22]} 23. Nxd5 {[%emt 0:00:57]} Rxd5 {[%emt 0:00:07]} 24. Rxd5 {[%emt 0:00:43]} Bxd5 {[%emt 0:00:12]} 25. Bxg7 {[%emt 0:00:17]} Qxe3 {[%emt 0:00:07]} 26. Rxe3 {[%emt 0:00:38]} Kxg7 {[%emt 0:00:42]} 27. Bxa6 {[%emt 0:00:19]} 1/2-1/2

[Event "Icelandic Team-ch Kvika Leagu 2023-24"]
[Site "Reykjavik"]
[Date "2024.03.02"]
[Round "8"]
[White "Sverrisson, Nokkvi"]
[Black "Einarsson, Arnthor"]
[Result "1-0"]
[ECO "B08"]
[WhiteElo "2052"]
[BlackElo "2179"]
[Annotator "ChessBase"]
[PlyCount "81"]
[EventDate "2024.02.29"]
[EventType "team-tourn"]
[EventCountry "ISL"]
[SourceTitle "playchess.com"]
[Source "ChessBase"]
[SourceQuality "1"]
[TimeControl "40/5400+30:900+30"]

1. e4 {[%emt 0:03:10]} d6 {[%emt 0:00:53]} 2. d4 {[%emt 0:00:12]} g6 {[%emt 0:00:07]} 3. Nf3 {[%emt 0:00:54]} Bg7 {[%emt 0:00:16]} 4. Be2 {[%emt 0:00:12]} Nf6 {[%emt 0:00:14]} 5. Nc3 {[%emt 0:00:42]} O-O {[%emt 0:01:25]} 6. O-O {[%emt 0:00:50]} c6 {[%emt 0:00:35]} 7. a4 {[%emt 0:03:30]} a5 {[%emt 0:00:43]} 8. d5 {[%emt 0:02:17]} Na6 {[%emt 0:00:52]} 9. Be3 {[%emt 0:02:15]} Nb4 {[%emt 0:01:06]} 10. h3 {[%emt 0:06:59]} Bd7 {[%emt 0:08:22]} 11. Bc4 {[%emt 0:12:26]} Rc8 {[%emt 0:10:31]} 12. Bb3 {[%emt 0:10:33]} Ra8 {[%emt 0:11:21]} 13. Nd4 {[%emt 0:08:35]} Qc8 {[%emt 0:01:10]} 14. f3 {[%emt 0:06:19]} Kh8 {[%emt 0:08:31]} 15. Qe2 {[%emt 0:03:59]} Nh5 {[%emt 0:02:05]} 16. Rfe1 {[%emt 0:04:09]} Be5 {[%emt 0:02:12]} 17. Qd2 {[%emt 0:03:05]} c5 {[%emt 0:04:40]} 18. Ndb5 {[%emt 0:05:32]} Bg3 {[%emt 0:02:21]} 19. Re2 {[%emt 0:04:10]} f5 {[%emt 0:02:19]} 20. exf5 {[%emt 0:02:50]} Bxf5 {[%emt 0:03:33]} 21. Ne4 {[%emt 0:02:51]} Bxe4 {[%emt 0:21:16]} 22. fxe4 {[%emt 0:00:05]} Be5 {[%emt 0:01:05]} 23. c3 {[%emt 0:00:41]} Na6 {[%emt 0:00:38]} 24. Rf2 {[%emt 0:02:01]} Rxf2 {[%emt 0:02:21]} 25. Qxf2 {[%emt 0:00:06]} Qf8 {[%emt 0:00:19]} 26. Rf1 {[%emt 0:00:42]} Qxf2+ {[%emt 0:00:53]} 27. Rxf2 {[%emt 0:00:09]} Kg7 {[%emt 0:01:00]} 28. Na3 {[%emt 0:03:50]} Nc7 {[%emt 0:02:05]} 29. Nc4 {[%emt 0:01:28]} Bg3 {[%emt 0:00:29]} 30. Rf3 {[%emt 0:00:19]} b5 {[%emt 0:00:07]} 31. axb5 {[%emt 0:00:48]} Nxb5 {[%emt 0:00:15]} 32. Ba4 {[%emt 0:00:51]} Rb8 {[%emt 0:00:21]} 33. Bg5 {[%emt 0:01:10]} Rb7 {[%emt 0:06:43]} 34. Bxb5 {[%emt 0:00:48]} Rxb5 {[%emt 0:00:06]} 35. Bxe7 {[%emt 0:00:10]} a4 {[%emt 0:00:35]} 36. Kf1 {[%emt 0:01:13]} a3 {[%emt 0:00:37]} 37. bxa3 {[%emt 0:00:14]} Rb1+ {[%emt 0:00:20]} 38. Ke2 {[%emt 0:00:06]} Rg1 {[%emt 0:01:54]} 39. Bf8+ {[%emt 0:00:58]} Kg8 {[%emt 0:00:05]} 40. Bh6 {[%emt 0:00:00]} Rxg2+ {[%emt 0:00:00]} 41. Kf1 {[%emt 0:00:31]} 1-0

[Event "Icelandic Team-ch Kvika Leagu 2023-24"]
[Site "Reykjavik"]
[Date "2024.03.02"]
[Round "9"]
[White "Kazakouski, Valery"]
[Black "Gretarsson, Hjorvar Steinn"]
[Result "1-0"]
[ECO "E08"]
[WhiteElo "2608"]
[BlackElo "2530"]
[Annotator "TA"]
[PlyCount "117"]
[EventDate "2024.02.29"]
[EventType "team-tourn"]
[EventCountry "ISL"]
[SourceTitle "playchess.com"]
[Source "ChessBase"]
[SourceQuality "1"]
[TimeControl "40/5400+30:900+30"]

{[%evp 21,117,8,7,16,3,11,5,0,0,0,42,35,36,28,41,34,27,20,74,70,76,17,19,24,41,35,38,29,27,16,52,39,57,50,57,62,61,65,63,31,40,45,44,30,72,43,53,36,83,75,137,105,119,118,107,60,194,201,213,177,164,195,208,173,279,311,319,281,332,311,331,327,704,693,954,936,1312,1007,1880,1880,2087,1268,1956,1504,1591,1288,6420,10208,29983,29984,29984,29985,29986,29984,29986,29987,29986,29987]} 1. d4 {[%emt 0:00:03]} Nf6 {[%emt 0:06:00]} 2. c4 {[%emt 0:00:10]} e6 {[%emt 0:00:05]} 3. Nf3 {[%emt 0:00:13]} d5 {[%emt 0:03:10]} 4. g3 {[%emt 0:02:12]} Bb4+ {[%emt 0:00:06]} 5. Bd2 {[%emt 0:00:11]} Be7 {[%emt 0:00:04]} 6. Bg2 {[%emt 0:00:12]} O-O {[%emt 0:00:06]} 7. O-O {[%emt 0:00:08]} Nbd7 {[%emt 0:00:18]} 8. Qc2 {[%emt 0:01:00]} c6 {[%emt 0:00:45]} 9. Rd1 {[%emt 0:00:39]} b6 {[%emt 0:01:32]} 10. Bf4 {[%emt 0:02:05]} Bb7 {[%emt 0:06:36]} 11. Nc3 {[%emt 0:03:38]} dxc4 {[%emt 0:01:01]} 12. Nd2 {[%emt 0:00:53]} Nd5 {[%emt 0:00:50]} 13. Nxc4 {[%emt 0:00:17]} Nxf4 {[%emt 0:00:28]} 14. gxf4 {[%emt 0:00:07] The position is equal.} Qc7 {[%emt 0:00:07]} 15. e3 {[%emt 0:00:53]} c5 {[%emt 0:07:19] ...Bxg2 is the strong threat.} 16. d5 {[%emt 0:07:06]} exd5 {[%emt 0:00:11]} 17. Nxd5 {[%emt 0:08:53]} Bxd5 {[%emt 0:00:06]} 18. Rxd5 {[%emt 0:01:46]} Rad8 {[%emt 0:01:26]} 19. Qb3 {[%emt 0:03:32]} a6 {[%emt 0:11:25]} (19... Nb8 $11 {keeps the balance.}) 20. a4 $1 $16 {[%emt 0:02:19] White is much more active.} Rb8 {[%emt 0:01:14]} 21. Qd1 {[%emt 0:06:15] Black is weak on the light squares} (21. Rad1 $16 Nf6 22. R5d2) 21... Rfd8 $11 {[%emt 0:10:01]} 22. Rd2 {[%emt 0:01:01]} Bf8 {[%emt 0:10:40]} 23. Qe2 {[%emt 0:13:30]} Nf6 {[%emt 0:06:17]} 24. Rxd8 {[%emt 0:02:18]} Rxd8 {[%emt 0:00:04]} 25. Ne5 {[%emt 0:00:23]} a5 {[%emt 0:01:13]} 26. Rd1 {[%emt 0:06:52]} Rxd1+ {[%emt 0:01:22]} 27. Qxd1 {[%emt 0:00:08]} Bd6 {[%emt 0:00:48]} 28. Nc4 {[%emt 0:00:49]} Be7 {[%emt 0:01:00]} 29. Qb3 {[%emt 0:02:39]} Bd8 {[%emt 0:01:42]} 30. Bf1 {[%emt 0:02:10] aiming for Ne5.} Ne8 {[%emt 0:02:07]} 31. Ne5 $36 {[%emt 0:03:45][%cal Oe5f7][%mdl 2048] Nxf7! would now be deadly. White has some pressure.} Nd6 {[%emt 0:00:23]} 32. Qd5 {[%emt 0:00:09]} Bf6 {[%emt 0:04:56]} 33. b3 {[%emt 0:04:29]} g6 {[%emt 0:06:01]} 34. Bh3 {[%emt 0:00:59]} Bxe5 {[%emt 0:05:48]} (34... Kg7 $14) 35. fxe5 $14 {[%emt 0:01:15][%mdl 4096] Endgame. KQB-KQN} Nb7 {[%emt 0:04:17]} (35... Ne8 $142) 36. Bd7 {[%emt 0:07:18]} Nd8 {[%emt 0:01:17]} 37. f4 {[%emt 0:00:24]} Kf8 {[%emt 0:01:39]} 38. e4 {[%emt 0:01:53]} (38. Kg2 $16) 38... f6 {[%emt 0:02:01] This move loses the game for Black.} 39. exf6 $18 {[%emt 0:11:07]} Qxf4 {[%emt 0:00:13]} 40. e5 {[%emt 0:00:00]} Qe3+ {[%emt 0:00:00]} 41. Kf1 $1 {[%emt 0:03:37]} Qc1+ {[%emt 0:05:12]} 42. Ke2 {[%emt 0:00:29] Intending Qd6+ and mate.} Qb2+ {[%emt 0:02:18]} (42... Qc2+ $142 43. Ke3 Qc3+ 44. Ke2 Qc2+ 45. Qd2 Qe4+ 46. Kf2 (46. Qe3 Qc2+ 47. Ke1 Qxh2 $11) 46... Nf7 (46... Qxe5 47. Qh6+ Kg8 48. Qg7#)) 43. Kd3 {[%emt 0:01:51]} Qb1+ {[%emt 0:00:47] [#]} 44. Kc4 $1 {[%emt 0:03:49] Threatening mate with Qd6+.} Qf1+ {[%emt 0:00:39]} 45. Qd3 {[%emt 0:00:39]} Qf4+ {[%emt 0:00:49]} 46. Kd5 {[%emt 0:01:32]} Nf7 $2 {[%emt 0:00:35] [#]} (46... Qxh2 47. e6 Qh1+ 48. Kc4 Qh4+ 49. Kb5 Qxf6) 47. Qe4 $1 {[%emt 0:00:28]} Qg5 {[%emt 0:06:02]} 48. h4 {[%emt 0:01:56]} Qh5 {[%emt 0:01:05]} 49. Qf4 {[%emt 0:07:17] Threatens to win with Bg4.} Qd1+ {[%emt 0:04:07]} 50. Kc6 {[%emt 0:00:09] e6 would kill now.} Qf3+ {[%emt 0:03:24]} 51. Qxf3 {[%emt 0:01:08]} Nxe5+ {[%emt 0:00:04]} 52. Kxb6 {[%emt 0:00:12]} Nxf3 {[%emt 0:00:06]} 53. Kxa5 {[%emt 0:00:28] KB-KN} Nd4 {[%emt 0:00:30]} 54. Kb6 {[%emt 0:00:11]} Nxb3 {[%emt 0:01:19]} 55. Be6 {[%emt 0:00:10] White mates.} Nd4 {[%emt 0:00:29]} 56. Bd5 {[%emt 0:00:10]} c4 {[%emt 0:00:31]} 57. Bxc4 {[%emt 0:00:36]} Nf3 {[%emt 0:00:10]} 58. a5 {[%emt 0:00:12]} Ne5 {[%emt 0:00:04]} 59. Be6 {[%emt 0:00:08] Weighted Error Value: White=0.08 (flawless) /Black=0.29 (precise) .  Mistake:       	White=2     	Black=6      Inaccurate:     	White=2     	Black=4      OK:         	White=11    	Black=15     Best:        	White=4     	Black=3      Strong:       	White=4     	---} 1-0

[Event "Icelandic Team-ch Kvika Leagu 2023-24"]
[Site "Reykjavik"]
[Date "2024.03.02"]
[Round "9"]
[White "Kulaots, Kaido"]
[Black "Nagy, Gabor"]
[Result "1-0"]
[ECO "B41"]
[WhiteElo "2534"]
[BlackElo "2436"]
[Annotator "RC"]
[PlyCount "55"]
[EventDate "2024.02.29"]
[EventType "team-tourn"]
[EventCountry "ISL"]
[SourceTitle "playchess.com"]
[Source "ChessBase"]
[SourceQuality "1"]
[TimeControl "40/5400+30:900+30"]

1. e4 {[%emt 0:00:13]} c5 {[%emt 0:01:06]} 2. Nf3 {[%emt 0:00:21]} e6 {[%emt 0:01:45]} 3. d4 {[%emt 0:00:21]} cxd4 {[%emt 0:00:16]} 4. Nxd4 {[%emt 0:00:05]} a6 {[%emt 0:00:08]} 5. a3 {[%emt 0:05:32]} Qc7 {[%emt 0:01:37]} 6. c4 {[%emt 0:02:00]} Nf6 {[%emt 0:00:22]} 7. Nc3 {[%emt 0:00:05]} b6 {[%emt 0:00:15]} 8. Be3 {[%emt 0:01:20]} Bb7 {[%emt 0:02:27]} 9. f3 {[%emt 0:00:13]} Be7 {[%emt 0:00:29]} 10. Rc1 {[%emt 0:03:41]} O-O {[%emt 0:00:32]} 11. Be2 {[%emt 0:02:50]} Nc6 {[%emt 0:00:45]} 12. Na4 {[%emt 0:26:47]} Rab8 {[%emt 0:09:11]} 13. b4 {[%emt 0:06:25]} Nh5 {[%emt 0:10:21]} 14. Nb3 {[%emt 0:05:13]} f5 {[%emt 0:08:39]} 15. Bxb6 {[%emt 0:09:46]} Qf4 {[%emt 0:04:38]} 16. Qxd7 {[%emt 0:08:50]} fxe4 {[%emt 0:02:50]} 17. Qxe6+ {[%emt 0:02:12]} Kh8 {[%emt 0:00:37]} 18. O-O {[%emt 0:12:39]} Qg5 {[%emt 0:09:03]} 19. fxe4 {[%emt 0:03:50]} Nf4 {[%emt 0:02:22]} 20. Rxf4 {[%emt 0:00:16]} Qxf4 {[%emt 0:07:55]} 21. Nc3 {[%emt 0:01:55]} Rf6 {[%emt 0:04:17]} 22. Qh3 {[%emt 0:03:29]} Rh6 {[%emt 0:04:12]} 23. Be3 {[%emt 0:00:35]} Qe5 {[%emt 0:02:12]} 24. Bxh6 {[%emt 0:00:08]} gxh6 {[%emt 0:00:07]} 25. Nd5 {[%emt 0:00:24]} Bg5 {[%emt 0:01:05]} 26. Rf1 {[%emt 0:00:36]} Rd8 {[%emt 0:00:56]} 27. Qf5 {[%emt 0:02:00]} Qb2 {[%emt 0:00:17]} 28. Nf6 {[%emt 0:00:26]} 1-0

[Event "Icelandic Team-ch Kvika Leagu 2023-24"]
[Site "Reykjavik"]
[Date "2024.03.02"]
[Round "9"]
[White "Pakleza, Zbigniew"]
[Black "Heimisson, Hilmir Freyr"]
[Result "1/2-1/2"]
[ECO "D32"]
[WhiteElo "2482"]
[BlackElo "2355"]
[Annotator "ChessBase"]
[PlyCount "117"]
[EventDate "2024.02.29"]
[EventType "team-tourn"]
[EventCountry "ISL"]
[SourceTitle "playchess.com"]
[Source "ChessBase"]
[SourceQuality "1"]
[TimeControl "40/5400+30:900+30"]

1. Nf3 {[%emt 0:00:01]} d5 {[%emt 0:01:31]} 2. e3 {[%emt 0:00:07]} Nf6 {[%emt 0:02:55]} 3. c4 {[%emt 0:00:01]} e6 {[%emt 0:02:18]} 4. Nc3 {[%emt 0:00:24]} c5 {[%emt 0:01:09]} 5. d4 {[%emt 0:00:29]} a6 {[%emt 0:01:25]} 6. cxd5 {[%emt 0:15:29]} exd5 {[%emt 0:00:09]} 7. Be2 {[%emt 0:00:32]} Nc6 {[%emt 0:00:30]} 8. O-O {[%emt 0:00:19]} cxd4 {[%emt 0:14:28]} 9. Nxd4 {[%emt 0:00:45]} Bd6 {[%emt 0:00:13]} 10. Bf3 {[%emt 0:28:04]} Bc7 {[%emt 0:08:38]} 11. Nxc6 {[%emt 0:03:26]} bxc6 {[%emt 0:09:52]} 12. e4 {[%emt 0:00:34]} O-O {[%emt 0:06:09]} 13. exd5 {[%emt 0:09:02]} Nxd5 {[%emt 0:00:24]} 14. Nxd5 {[%emt 0:03:17]} cxd5 {[%emt 0:00:07]} 15. Qxd5 {[%emt 0:05:21]} Rb8 {[%emt 0:00:08]} 16. Qxd8 {[%emt 0:12:32]} Rxd8 {[%emt 0:00:36]} 17. Re1 {[%emt 0:04:25]} f6 {[%emt 0:02:52]} 18. g4 {[%emt 0:06:06]} Be5 {[%emt 0:11:22]} 19. Rb1 {[%emt 0:00:18]} h5 {[%emt 0:00:10]} 20. gxh5 {[%emt 0:03:37]} Bf5 {[%emt 0:00:54]} 21. Ra1 {[%emt 0:00:01]} Rd4 {[%emt 0:00:58]} 22. Kg2 {[%emt 0:02:26]} Rh4 {[%emt 0:00:35]} 23. Rxe5 {[%emt 0:00:21]} fxe5 {[%emt 0:00:37]} 24. Bg5 {[%emt 0:00:59]} Rhb4 {[%emt 0:09:45]} 25. b3 {[%emt 0:00:12]} Be4 {[%emt 0:07:47]} 26. Re1 {[%emt 0:00:11]} Bxf3+ {[%emt 0:00:15]} 27. Kxf3 {[%emt 0:00:01]} Rf8+ {[%emt 0:00:54]} 28. Kg3 {[%emt 0:00:04]} Rf5 {[%emt 0:01:33]} 29. h4 {[%emt 0:00:04]} Rd4 {[%emt 0:02:50]} 30. Rc1 {[%emt 0:01:36]} Rd3+ {[%emt 0:00:55]} 31. Kg2 {[%emt 0:00:33]} Rdf3 {[%emt 0:00:55]} 32. Be3 {[%emt 0:00:52]} Rf7 {[%emt 0:01:59]} 33. Rc2 {[%emt 0:00:42]} R3f6 {[%emt 0:02:14]} 34. b4 {[%emt 0:00:30]} Rb7 {[%emt 0:00:41]} 35. a3 {[%emt 0:01:47]} Kf7 {[%emt 0:00:57]} 36. Rc5 {[%emt 0:00:38]} Rb5 {[%emt 0:05:09]} 37. Rc7+ {[%emt 0:00:04]} Kg8 {[%emt 0:00:01]} 38. Ra7 {[%emt 0:02:26]} Rd5 {[%emt 0:01:31]} 39. a4 {[%emt 0:00:32]} Rc6 {[%emt 0:00:57]} 40. Kf3 {[%emt 0:00:00]} e4+ {[%emt 0:00:00]} 41. Kxe4 {[%emt 0:09:49]} Rxh5 {[%emt 0:03:59]} 42. Bg5 {[%emt 0:01:47]} Rc4+ {[%emt 0:07:44]} 43. Kf5 {[%emt 0:00:09]} Rcxh4 {[%emt 0:00:29]} 44. f4 {[%emt 0:00:39]} Kh7 {[%emt 0:01:09]} 45. Rxa6 {[%emt 0:00:27]} Rh1 {[%emt 0:00:40]} 46. b5 {[%emt 0:00:29]} R5h3 {[%emt 0:00:51]} 47. Ra7 {[%emt 0:01:00]} Rb3 {[%emt 0:00:32]} 48. Bf6 {[%emt 0:00:57]} Rg1 {[%emt 0:00:20]} 49. Be5 {[%emt 0:01:15]} Kh6 {[%emt 0:00:51]} 50. Ra6+ {[%emt 0:02:29]} g6+ {[%emt 0:00:14]} 51. Kf6 {[%emt 0:00:50]} Rb4 {[%emt 0:01:33]} 52. Ra8 {[%emt 0:01:17]} Kh5 {[%emt 0:00:07]} 53. Bd6 {[%emt 0:00:49]} Rd4 {[%emt 0:00:40]} 54. Be5 {[%emt 0:00:01]} Rb4 {[%emt 0:00:03]} 55. Rh8+ {[%emt 0:01:04]} Kg4 {[%emt 0:00:02]} 56. Rh2 {[%emt 0:00:25]} Rxa4 {[%emt 0:01:24]} 57. Rb2 {[%emt 0:00:02]} Raa1 {[%emt 0:02:08]} 58. b6 {[%emt 0:01:08]} Rgb1 {[%emt 0:01:01]} 59. Rxb1 {[%emt 0:00:51]} 1/2-1/2

[Event "Icelandic Team-ch Kvika Leagu 2023-24"]
[Site "Reykjavik"]
[Date "2024.03.02"]
[Round "9"]
[White "Stefansson, Hannes"]
[Black "Pultinevicius, Paulius"]
[Result "1-0"]
[ECO "B15"]
[WhiteElo "2481"]
[BlackElo "2575"]
[Annotator "RC"]
[PlyCount "85"]
[EventDate "2024.02.29"]
[EventType "team-tourn"]
[EventCountry "ISL"]
[SourceTitle "playchess.com"]
[Source "ChessBase"]
[SourceQuality "1"]
[TimeControl "40/5400+30:900+30"]

1. e4 {[%emt 0:00:09]} c6 {[%emt 0:00:03]} 2. d4 {[%emt 0:00:42]} d5 {[%emt 0:00:03]} 3. Nd2 {[%emt 0:01:03]} dxe4 {[%emt 0:00:06]} 4. Nxe4 {[%emt 0:00:13]} Nf6 {[%emt 0:00:03]} 5. Nxf6+ {[%emt 0:00:45]} exf6 {[%emt 0:00:05]} 6. Be3 {[%emt 0:00:50]} Bd6 {[%emt 0:00:17]} 7. Bd3 {[%emt 0:00:47]} Na6 {[%emt 0:00:17]} 8. a3 {[%emt 0:01:04]} O-O {[%emt 0:00:15]} 9. Ne2 {[%emt 0:01:23]} Re8 {[%emt 0:00:32]} 10. O-O {[%emt 0:04:00]} Bg4 {[%emt 0:00:56]} 11. h3 {[%emt 0:03:07]} Bxe2 {[%emt 0:00:46]} 12. Qxe2 {[%emt 0:08:12]} Nc7 {[%emt 0:00:14]} 13. Qf3 {[%emt 0:03:40]} g6 {[%emt 0:01:24]} 14. Rfe1 {[%emt 0:05:53]} f5 {[%emt 0:01:03]} 15. Bc4 {[%emt 0:03:42]} Qh4 {[%emt 0:01:34]} 16. g4 {[%emt 0:07:25]} Ne6 {[%emt 0:13:29]} 17. d5 {[%emt 0:10:54]} cxd5 {[%emt 0:06:41]} 18. Bxd5 {[%emt 0:00:24]} fxg4 {[%emt 0:06:51]} 19. hxg4 {[%emt 0:01:16]} Rac8 {[%emt 0:05:59]} 20. c4 {[%emt 0:09:47]} Be5 {[%emt 0:02:54]} 21. Rad1 {[%emt 0:06:07]} b6 {[%emt 0:06:10]} 22. Bc1 {[%emt 0:03:09]} Bc7 {[%emt 0:07:46]} 23. Kf1 {[%emt 0:03:08]} Bd8 {[%emt 0:05:17]} 24. b4 {[%emt 0:04:11]} Bf6 {[%emt 0:00:48]} 25. Re4 {[%emt 0:02:29]} Bg7 {[%emt 0:06:31]} 26. Rde1 {[%emt 0:04:51]} Qd8 {[%emt 0:02:26]} 27. g5 {[%emt 0:02:41]} b5 {[%emt 0:02:58]} 28. Rd1 {[%emt 0:01:21]} Qc7 {[%emt 0:03:25]} 29. c5 {[%emt 0:00:32]} Re7 {[%emt 0:00:59]} 30. Qg3 {[%emt 0:02:33]} Qd8 {[%emt 0:01:07]} 31. Qb3 {[%emt 0:02:05]} Qf8 {[%emt 0:05:39]} 32. Rxe6 {[%emt 0:00:37]} fxe6 {[%emt 0:00:04]} 33. Bxe6+ {[%emt 0:00:06]} Kh8 {[%emt 0:01:38]} 34. Bxc8 {[%emt 0:00:06]} Qxc8 {[%emt 0:00:03]} 35. Qd3 {[%emt 0:01:07]} Qe6 {[%emt 0:00:21]} 36. Bf4 {[%emt 0:01:06]} Rf7 {[%emt 0:00:46]} 37. Bg3 {[%emt 0:01:25]} Rf8 {[%emt 0:03:53]} 38. Qd5 {[%emt 0:02:22]} Qg4 {[%emt 0:02:23]} 39. Kg2 {[%emt 0:01:06]} a5 {[%emt 0:01:12]} 40. bxa5 {[%emt 0:00:00]} Qa4 {[%emt 0:00:00]} 41. c6 {[%emt 0:02:00]} Qxa5 {[%emt 0:00:53]} 42. c7 {[%emt 0:00:49]} Qc3 {[%emt 0:00:15]} 43. Qb7 {[%emt 0:05:21]} 1-0